fUST/lending_fUST_20250401
["ID","MTS","AMOUNT","RATE_DAILY","PERIOD"]
[356971542,1743511848530,-500.0,0.00018356,2]
[356971543,1743511848541,-500.0,0.00018356,2]
[356971544,1743511848551,-500.0,0.00018356,2]
[356971545,1743511848562,-500.0,0.00018356,2]
[356971546,1743511848572,-519.21102702,0.00018356,2]
[356971547,1743511848582,-500.0,0.00018356,2]
[356971548,1743511848592,-500.0,0.00018356,2]
[356971549,1743511848602,-500.0,0.00018356,2]
[356971550,1743511848612,-500.0,0.00018356,2]
[356971551,1743511848622,-500.0,0.00018356,2]
[356971552,1743511848635,-500.0,0.00018356,2]
[356971553,1743511848645,-500.0,0.00018356,2]
[356971554,1743511848655,-559.76,0.00018356,2]
[356971555,1743511848666,-500.0,0.00018356,2]
[356971556,1743511848678,-500.0,0.00018356,2]
[356971557,1743511848688,-812.55,0.00018356,2]
[356971558,1743511848698,-500.0,0.00018356,2]
[356971559,1743511848708,-785.36,0.00018356,2]
[356971560,1743511848718,-500.0,0.00018356,2]
[356971561,1743511848728,-500.0,0.00018356,2]
[356971562,1743511848738,-500.0,0.00018356,2]
[356971563,1743511848748,-500.0,0.00018356,2]
[356971564,1743511848758,-791.06,0.00018356,2]
[356971565,1743511848768,-500.0,0.00018356,2]
[356971566,1743511848778,-500.0,0.00018356,2]
[356971567,1743511848787,-500.0,0.00018356,2]
[356971568,1743511848797,-500.0,0.00018356,2]
[356971569,1743511848807,-500.0,0.00018356,2]
[356971570,1743511848818,-500.0,0.00018356,2]
[356971571,1743511848828,-500.0,0.00018356,2]
[356971572,1743511848839,-500.0,0.00018356,2]
[356971573,1743511848849,-500.0,0.00018356,2]
[356971574,1743511848859,-500.0,0.00018356,2]
[356971575,1743511848868,-500.0,0.00018356,2]
[356971576,1743511848878,-1670.24,0.00018356,2]
[356971577,1743511848889,-500.0,0.00018356,2]
[356971578,1743511848899,-500.0,0.00018356,2]
[356971579,1743511848909,-500.0,0.00018356,2]
[356971580,1743511848918,-500.0,0.00018356,2]
[356971581,1743511848928,-500.0,0.00018356,2]
[356971582,1743511848938,-500.0,0.00018356,2]
[356971583,1743511848947,-707.22,0.00018356,2]
[356971584,1743511848957,-500.0,0.00018356,2]
[356971585,1743511848967,-500.0,0.00018356,2]
[356971586,1743511848978,-500.0,0.00018356,2]
[356971587,1743511848990,-500.0,0.00018356,2]
[356971588,1743511849002,-558.95290136,0.00018356,2]
[356971589,1743511849012,-901.5,0.00018356,2]
[356971590,1743511849023,-500.0,0.00018356,2]
[356971591,1743511849033,-500.0,0.00018356,2]
[356971592,1743511849043,-864.64,0.00018356,2]
[356971593,1743511849054,-619.0,0.00018356,2]
[356971594,1743511849065,-896.88,0.00018356,2]
[356971595,1743511849075,-500.0,0.00018356,2]
[356971596,1743511849086,-500.0,0.00018356,2]
[356971597,1743511849097,-1772.12,0.00018356,2]
[356971598,1743511849107,-500.0,0.00018356,2]
[356971599,1743511849121,-596.7,0.00018356,2]
[356971600,1743511849131,-500.0,0.00018356,2]
[356971601,1743511849142,-500.0,0.00018356,2]
[356971602,1743511849152,-500.0,0.00018356,2]
[356971603,1743511849162,-500.0,0.00018356,2]
[356971604,1743511849173,-500.0,0.00018356,2]
[356971605,1743511849183,-3356.11,0.00018356,2]
[356971606,1743511849193,-540.11,0.00018356,2]
[356971607,1743511849204,-640.2,0.00018356,2]
[356971608,1743511849215,-564.61,0.00018356,2]
[356971609,1743511849224,-1033.56,0.00018356,2]
[356971610,1743511849234,-500.0,0.00018356,2]
[356971611,1743511849244,-532.66,0.00018356,2]
[356971612,1743511849254,-2934.38,0.00018356,2]
[356971613,1743511849265,-987.59,0.00018356,2]
[356971614,1743511849275,-500.0,0.00018356,2]
[356971615,1743511849286,-500.0,0.00018356,2]
[356971616,1743511849296,-599.43,0.00018356,2]
[356971617,1743511849306,-4154.16,0.00018356,2]
[356971618,1743511849316,-500.0,0.00018356,2]
[356971619,1743511849327,-500.0,0.00018356,2]
[356971620,1743511849337,-500.0,0.00018356,2]
[356971621,1743511849347,-500.0,0.00018356,2]
[356971622,1743511849358,-686.03,0.00018356,2]
[356971623,1743511849368,-549.89,0.00018356,2]
[356971624,1743511849377,-500.0,0.00018356,2]
[356971625,1743511849388,-635.45,0.00018356,2]
[356971626,1743511849398,-407.78295474,0.00018356,2]
[356971627,1743511849408,-500.0,0.00018356,2]
[356971628,1743511849419,-618.27,0.00018356,2]
[356971629,1743511849429,-500.0,0.00018356,2]
[356971630,1743511849439,-500.0,0.00018356,2]
[356971631,1743511849448,-500.0,0.00018356,2]
[356971632,1743511849458,-500.0,0.00018356,2]
[356971633,1743511849468,-500.0,0.00018356,2]
[356971634,1743511849478,-500.0,0.00018356,2]
[356971635,1743511849488,-500.0,0.00018356,2]
[356971636,1743511849497,-500.0,0.00018356,2]
[356971637,1743511849507,-618.55,0.00018356,2]
[356971638,1743511849517,-500.0,0.00018356,2]
[356971639,1743511849527,-500.0,0.00018356,2]
[356971640,1743511849537,-500.0,0.00018356,2]
[356971641,1743511849547,-3733.39,0.00018356,2]
[356971642,1743511849556,-500.0,0.00018356,2]
[356971643,1743511849567,-500.0,0.00018356,2]
[356971644,1743511849577,-649.23579722,0.00018356,2]
[356971645,1743511849586,-589.15,0.00018356,2]
[356971646,1743511849596,-500.0,0.00018356,2]
[356971647,1743511849606,-552.2,0.00018356,2]
[356971648,1743511849616,-2903.61,0.00018356,2]
[356971649,1743511849626,-500.0,0.00018356,2]
[356971650,1743511849636,-500.0,0.00018356,2]
[356971651,1743511849646,-500.0,0.00018356,2]
[356971652,1743511849656,-4746.78,0.00018356,2]
[356971653,1743511849665,-271.18586406,0.00018356,2]
[356971654,1743511849675,-500.0,0.00018356,2]
[356971655,1743511849685,-500.0,0.00018356,2]
[356971656,1743511849695,-500.0,0.00018356,2]
[356971657,1743511849705,-1427.21,0.00018356,2]
[356971658,1743511849715,-1831.33,0.00018356,2]
[356971659,1743511849724,-829.33,0.00018356,2]
[356971660,1743511849734,-500.0,0.00018356,2]
[356971661,1743511849743,-500.0,0.00018356,2]
[356971662,1743511849753,-901.12,0.00018356,2]
[356971663,1743511849763,-10198.4,0.00018356,2]
[356971664,1743511849773,-151.0,0.00018356,2]
[356971665,1743511849783,-1956.22,0.00018356,2]
[356971666,1743511849794,-500.0,0.00018356,2]
[356971667,1743511849803,-539.81,0.00018356,2]
[356971668,1743511849965,-607.67,0.00018356,2]
[356971669,1743511849976,-4310.96,0.00018356,2]
[356971670,1743511849987,-200.0,0.00018356,2]
[356971671,1743511849998,-2071.97,0.00018356,2]
[356971672,1743511850007,-500.0,0.00018356,2]
[356971673,1743511850017,-898.84,0.00018356,2]
[356971674,1743511850027,-500.0,0.00018356,2]
[356971675,1743511850036,-500.0,0.00018356,2]
[356971676,1743511850046,-500.0,0.00018356,2]
[356971677,1743511850056,-1742.34,0.00018356,2]
[356971678,1743511850066,-500.0,0.00018356,2]
[356971679,1743511850076,-594.35,0.00018356,2]
[356971680,1743511850086,-505.77,0.00018356,2]
[356971681,1743511850095,-11519.68,0.00018356,2]
[356971682,1743511850104,-3396.4,0.00018356,2]
[356971683,1743511850114,-500.0,0.00018356,2]
[356971684,1743511850129,-588.38,0.00018356,2]
[356971685,1743511850138,-597.82,0.00018356,2]
[356971686,1743511850148,-500.0,0.00018356,2]
[356971687,1743511850158,-500.0,0.00018356,2]
[356971688,1743511850169,-500.0,0.00018356,2]
[356971689,1743511850179,-6013.25,0.00018356,2]
[356971690,1743511850190,-500.0,0.00018356,2]
[356971691,1743511850202,-698.88,0.00018356,2]
[356971692,1743511850212,-926.1,0.00018356,2]
[356971693,1743511850222,-2627.75,0.00018356,2]
[356971694,1743511850232,-2688.77,0.00018356,2]
[356971695,1743511850242,-1319.31,0.00018356,2]
[356971696,1743511850252,-2867.87,0.00018356,2]
[356971697,1743511850261,-3629.52,0.00018356,2]
[356971698,1743511850272,-907.13,0.00018356,2]
[356971699,1743511850282,-770.9,0.00018356,2]
[356971700,1743511850291,-584.69,0.00018356,2]
[356971701,1743511850301,-543.74,0.00018356,2]
[356971702,1743511850311,-1161.33,0.00018356,2]
[356971703,1743511850321,-1377.78,0.00018356,2]
[356971704,1743511850331,-814.41,0.00018356,2]
[356971705,1743511850342,-2088.0,0.00018356,2]
[356971706,1743511850352,-539.2,0.00018356,2]
[356971707,1743511850363,-820.58,0.00018356,2]
[356971708,1743511850372,-500.0,0.00018356,2]
[356971709,1743511850382,-500.0,0.00018356,2]
[356971710,1743511850392,-500.0,0.00018356,2]
[356971711,1743511850401,-5678.07,0.00018356,2]
[356971712,1743511850411,-500.0,0.00018356,2]
[356971713,1743511850420,-500.0,0.00018356,2]
[356971714,1743511850430,-500.0,0.00018356,2]
[356971715,1743511850442,-500.0,0.00018356,2]
[356971716,1743511850452,-1230.57,0.00018356,2]
[356971717,1743511850463,-932.68,0.00018356,2]
[356971718,1743511850472,-500.0,0.00018356,2]
[356971719,1743511850482,-500.0,0.00018356,2]
[356971720,1743511850491,-968.43,0.00018356,2]
[356971721,1743511850501,-590.49,0.00018356,2]
[356971722,1743511850511,-500.0,0.00018356,2]
[356971723,1743511850521,-1446.65,0.00018356,2]
[356971724,1743511850531,-500.0,0.00018356,2]
[356971725,1743511850540,-3087.28,0.00018356,2]
[356971726,1743511850550,-1474.18,0.00018356,2]
[356971727,1743511850559,-1315.11,0.00018356,2]
[356971728,1743511850569,-587.0,0.00018465,2]
[356971729,1743511850578,-712.61145107,0.000186,2]
[356971730,1743511850588,-712.61145097,0.000186,2]
[356971731,1743511850597,-712.61145097,0.000186,2]
[356971732,1743511850607,-712.61145097,0.000186,2]
[356971733,1743511850616,-500.0,0.0001863,2]
[356971734,1743511850626,-500.0,0.0001863,2]
[356971735,1743511850635,-500.0,0.0001863,2]
[356971736,1743511850645,-500.0,0.0001863,2]
[356971737,1743511850654,-628.26441565,0.0001863,2]
[356971738,1743511850665,-500.0,0.0001863,2]
[356971739,1743511850674,-500.0,0.0001863,2]
[356971740,1743511850683,-500.0,0.0001863,2]
[356971741,1743511850693,-633.91092363,0.0001863,2]
[356971742,1743511850703,-279.02519531,0.0001863,2]
[356971743,1743511850713,-500.0,0.0001863,2]
[356971744,1743511850722,-500.0,0.0001863,2]
[356971745,1743511850732,-500.0,0.0001863,2]
[356971746,1743511850741,-500.0,0.0001863,2]
[356971747,1743511850750,-500.0,0.0001863,2]
[356971748,1743511850760,-500.0,0.0001863,2]
[356971749,1743511850769,-500.0,0.0001863,2]
[356971750,1743511850780,-500.0,0.0001863,2]
[356971751,1743511850789,-500.0,0.0001863,2]
[356971752,1743511850799,-500.0,0.0001863,2]
[356971753,1743511850808,-500.0,0.0001863,2]
[356971754,1743511850818,-500.0,0.0001863,2]
[356971755,1743511850828,-559.76,0.0001863,2]
[356971756,1743511850838,-500.0,0.0001863,2]
[356971757,1743511850847,-500.0,0.0001863,2]
[356971758,1743511850857,-812.55,0.0001863,2]
[356971759,1743511850867,-500.0,0.0001863,2]
[356971760,1743511850877,-785.36,0.0001863,2]
[356971761,1743511850886,-500.0,0.0001863,2]
[356971762,1743511850896,-500.0,0.0001863,2]
[356971763,1743511850905,-500.0,0.0001863,2]
[356971764,1743511850915,-500.0,0.0001863,2]
[356971765,1743511850924,-791.06,0.0001863,2]
[356971766,1743511850934,-500.0,0.0001863,2]
[356971767,1743511850943,-623.03,0.0001863,2]
[356971768,1743511850953,-500.0,0.0001863,2]
[356971769,1743511850964,-500.0,0.0001863,2]
[356971770,1743511850974,-500.0,0.0001863,2]
[356971771,1743511850984,-500.0,0.0001863,2]
[356971772,1743511850994,-500.0,0.0001863,2]
[356971773,1743511851004,-500.0,0.0001863,2]
[356971774,1743511851013,-221.60317429,0.0001863,2]
[356971775,1743511851022,-500.0,0.0001863,2]
[356971776,1743511851032,-1670.24,0.0001863,2]
[356971777,1743511851042,-500.0,0.0001863,2]
[356971778,1743511851051,-500.0,0.0001863,2]
[356971779,1743511851061,-500.0,0.0001863,2]
[356971780,1743511851070,-500.0,0.0001863,2]
[356971781,1743511851080,-500.0,0.0001863,2]
[356971782,1743511851090,-500.0,0.0001863,2]
[356971783,1743511851099,-707.22,0.0001863,2]
[356971784,1743511851109,-500.0,0.0001863,2]
[356971785,1743511851123,-500.0,0.0001863,2]
[356971786,1743511851133,-500.0,0.0001863,2]
[356971787,1743511851142,-500.0,0.0001863,2]
[356971788,1743511851152,-901.5,0.0001863,2]
[356971789,1743511851162,-500.0,0.0001863,2]
[356971790,1743511851171,-228.78796887,0.0001863,2]
[356971791,1743511851182,-864.64,0.0001863,2]
[356971792,1743511851194,-619.0,0.0001863,2]
[356971793,1743511851211,-896.88,0.0001863,2]
[356971794,1743511851229,-500.0,0.0001863,2]
[356971795,1743511851245,-500.0,0.0001863,2]
[356971796,1743511851257,-1772.12,0.0001863,2]
[356971797,1743511851273,-500.0,0.0001863,2]
[356971798,1743511851287,-596.7,0.0001863,2]
[356971799,1743511851303,-500.0,0.0001863,2]
[356971800,1743511851317,-500.0,0.0001863,2]
[356971801,1743511851333,-500.0,0.0001863,2]
[356971802,1743511851349,-500.0,0.0001863,2]
[356971803,1743511851362,-500.0,0.0001863,2]
[356971804,1743511851375,-3356.11,0.0001863,2]
[356971805,1743511851390,-540.11,0.0001863,2]
[356971806,1743511851405,-640.2,0.0001863,2]
[356971807,1743511851418,-564.61,0.0001863,2]
[356971808,1743511851429,-1033.56,0.0001863,2]
[356971809,1743511851442,-500.0,0.0001863,2]
[356971810,1743511851455,-532.66,0.0001863,2]
[356971811,1743511851468,-2934.38,0.0001863,2]
[356971812,1743511851483,-987.59,0.0001863,2]
[356971813,1743511851497,-500.0,0.0001863,2]
[356971814,1743511851512,-500.0,0.0001863,2]
[356971815,1743511851527,-599.43,0.0001863,2]
[356971816,1743511851540,-4154.16,0.0001863,2]
[356971817,1743511851551,-500.0,0.0001863,2]
[356971818,1743511851563,-500.0,0.0001863,2]
[356971819,1743511851579,-500.0,0.0001863,2]
[356971820,1743511851592,-500.0,0.0001863,2]
[356971821,1743511851603,-686.03,0.0001863,2]
[356971822,1743511851616,-549.89,0.0001863,2]
[356971823,1743511851629,-500.0,0.0001863,2]
[356971824,1743511851642,-635.45,0.0001863,2]
[356971825,1743511851654,-500.0,0.0001863,2]
[356971826,1743511851667,-618.27,0.0001863,2]
[356971827,1743511851680,-500.0,0.0001863,2]
[356971828,1743511851692,-500.0,0.0001863,2]
[356971829,1743511851704,-500.0,0.0001863,2]
[356971830,1743511851716,-209.25334857,0.0001863,2]
[356971831,1743511851729,-500.0,0.0001863,2]
[356971832,1743511851741,-500.0,0.0001863,2]
[356971833,1743511851754,-500.0,0.0001863,2]
[356971834,1743511851766,-500.0,0.0001863,2]
[356971835,1743511851779,-618.55,0.0001863,2]
[356971836,1743511851793,-500.0,0.0001863,2]
[356971837,1743511851806,-338.23622049,0.0001863,2]
[356971838,1743511851819,-500.0,0.0001863,2]
[356971839,1743511851833,-3733.39,0.0001863,2]
[356971840,1743511851845,-500.0,0.0001863,2]
[356971841,1743511851858,-500.0,0.0001863,2]
[356971842,1743511851870,-589.15,0.0001863,2]
[356971843,1743511851883,-500.0,0.0001863,2]
[356971844,1743511851895,-552.2,0.0001863,2]
[356971845,1743511851909,-2903.61,0.0001863,2]
[356971846,1743511851921,-439.14186469,0.0001863,2]
[356971847,1743511851933,-500.0,0.0001863,2]
[356971848,1743511851946,-500.0,0.0001863,2]
[356971849,1743511851959,-4746.78,0.0001863,2]
[356971850,1743511851972,-500.0,0.0001863,2]
[356971851,1743511851985,-500.0,0.0001863,2]
[356971852,1743511851997,-500.0,0.0001863,2]
[356971853,1743511852010,-1427.21,0.0001863,2]
[356971854,1743511852023,-1831.33,0.0001863,2]
[356971855,1743511852038,-829.33,0.0001863,2]
[356971856,1743511852050,-500.0,0.0001863,2]
[356971857,1743511852063,-500.0,0.0001863,2]
[356971858,1743511852075,-901.12,0.0001863,2]
[356971859,1743511852088,-10198.4,0.0001863,2]
[356971860,1743511852101,-232.4677,0.0001863,2]
[356971861,1743511852114,-1956.22,0.0001863,2]
[356971862,1743511852131,-500.0,0.0001863,2]
[356971863,1743511852144,-539.81,0.0001863,2]
[356971864,1743511852156,-607.67,0.0001863,2]
[356971865,1743511852171,-4310.96,0.0001863,2]
[356971866,1743511852183,-200.0,0.0001863,2]
[356971867,1743511852196,-2071.97,0.0001863,2]
[356971868,1743511852209,-500.0,0.0001863,2]
[356971869,1743511852223,-898.84,0.0001863,2]
[356971870,1743511852235,-500.0,0.0001863,2]
[356971871,1743511852248,-500.0,0.0001863,2]
[356971872,1743511852263,-500.0,0.0001863,2]
[356971873,1743511852276,-1742.34,0.0001863,2]
[356971874,1743511852290,-500.0,0.0001863,2]
[356971875,1743511852303,-594.35,0.0001863,2]
[356971876,1743511852316,-505.77,0.0001863,2]
[356971877,1743511852328,-11519.68,0.0001863,2]
[356971878,1743511852340,-3396.4,0.0001863,2]
[356971879,1743511852353,-500.0,0.0001863,2]
[356971880,1743511852366,-588.38,0.0001863,2]
[356971881,1743511852377,-597.82,0.0001863,2]
[356971882,1743511852390,-500.0,0.0001863,2]
[356971883,1743511852403,-500.0,0.0001863,2]
[356971884,1743511852415,-500.0,0.0001863,2]
[356971885,1743511852428,-6013.25,0.0001863,2]
[356971886,1743511852440,-500.0,0.0001863,2]
[356971887,1743511852453,-698.88,0.0001863,2]
[356971888,1743511852466,-926.1,0.0001863,2]
[356971889,1743511852478,-2627.75,0.0001863,2]
[356971890,1743511852491,-2688.77,0.0001863,2]
[356971891,1743511852504,-1319.31,0.0001863,2]
[356971892,1743511852516,-2867.87,0.0001863,2]
[356971893,1743511852527,-3629.52,0.0001863,2]
[356971894,1743511852541,-907.13,0.0001863,2]
[356971895,1743511852553,-770.9,0.0001863,2]
[356971896,1743511852565,-584.69,0.0001863,2]
[356971897,1743511852577,-543.74,0.0001863,2]
[356971898,1743511852590,-1161.33,0.0001863,2]
[356971899,1743511852602,-1377.78,0.0001863,2]
[356971900,1743511852615,-814.41,0.0001863,2]
[356971901,1743511852627,-2088.0,0.0001863,2]
[356971902,1743511852638,-539.2,0.0001863,2]
[356971903,1743511852651,-820.58,0.0001863,2]
[356971904,1743511852663,-500.0,0.0001863,2]
[356971905,1743511852675,-500.0,0.0001863,2]
[356971906,1743511852689,-500.0,0.0001863,2]
[356971907,1743511852701,-5678.07,0.0001863,2]
[356971908,1743511852711,-500.0,0.0001863,2]
[356971909,1743511852721,-224.28479824,0.0001863,2]
[356971910,1743511852731,-500.0,0.0001863,2]
[356971911,1743511852741,-500.0,0.0001863,2]
[356971912,1743511852940,-1230.57,0.0001863,2]
[356971913,1743511852964,-932.68,0.0001863,2]
[356971914,1743511852974,-500.0,0.0001863,2]
[356971915,1743511852984,-500.0,0.0001863,2]
[356971916,1743511852994,-968.43,0.0001863,2]
[356971917,1743511853004,-590.49,0.0001863,2]
[356971918,1743511853014,-500.0,0.0001863,2]
[356971919,1743511853024,-1446.65,0.0001863,2]
[356971920,1743511853033,-500.0,0.0001863,2]
[356971921,1743511853043,-3087.28,0.0001863,2]
[356971922,1743511853054,-1474.18,0.0001863,2]
[356971923,1743511853063,-1315.11,0.0001863,2]
[356971924,1743511853073,-200.0,0.00018723,2]
[356971925,1743511853083,-418.94013069,0.00018845,2]
[356971926,1743511853093,-12458.93820146,0.00018845,2]
[356971927,1743511853103,-160.0,0.00018845,2]
[356971928,1743511853112,-160.0,0.00018845,2]
[356971929,1743511853127,-500.0,0.00018904,2]
[356971930,1743511853137,-500.0,0.00018904,2]
[356971931,1743511853147,-500.0,0.00018904,2]
[356971932,1743511853157,-500.0,0.00018904,2]
[356971933,1743511853167,-500.0,0.00018904,2]
[356971934,1743511853177,-500.0,0.00018904,2]
[356971935,1743511853187,-500.0,0.00018904,2]
[356971936,1743511853197,-500.0,0.00018904,2]
[356971937,1743511853209,-500.0,0.00018904,2]
[356971938,1743511853219,-500.0,0.00018904,2]
[356971939,1743511853229,-500.0,0.00018904,2]
[356971940,1743511853239,-500.0,0.00018904,2]
[356971941,1743511853250,-500.0,0.00018904,2]
[356971942,1743511853259,-212.13390875,0.00018904,2]
[356971943,1743511853268,-500.0,0.00018904,2]
[356971944,1743511853278,-500.0,0.00018904,2]
[356971945,1743511853289,-500.0,0.00018904,2]
[356971946,1743511853299,-559.76,0.00018904,2]
[356971947,1743511853310,-500.0,0.00018904,2]
[356971948,1743511853320,-500.0,0.00018904,2]
[356971949,1743511853330,-812.55,0.00018904,2]
[356971950,1743511853342,-500.0,0.00018904,2]
[356971951,1743511853351,-785.36,0.00018904,2]
[356971952,1743511853361,-500.0,0.00018904,2]
[356971953,1743511853370,-500.0,0.00018904,2]
[356971954,1743511853380,-500.0,0.00018904,2]
[356971955,1743511853389,-500.0,0.00018904,2]
[356971956,1743511853399,-791.06,0.00018904,2]
[356971957,1743511853409,-436.02425487,0.00018904,2]
[356971958,1743511853418,-500.0,0.00018904,2]
[356971959,1743511853427,-500.0,0.00018904,2]
[356971960,1743511853437,-500.0,0.00018904,2]
[356971961,1743511853446,-500.0,0.00018904,2]
[356971962,1743511853456,-500.0,0.00018904,2]
[356971963,1743511853466,-500.0,0.00018904,2]
[356971964,1743511853478,-1670.24,0.00018904,2]
[356971965,1743511853488,-500.0,0.00018904,2]
[356971966,1743511853499,-500.0,0.00018904,2]
[356971967,1743511853509,-500.0,0.00018904,2]
[356971968,1743511853519,-500.0,0.00018904,2]
[356971969,1743511853531,-500.0,0.00018904,2]
[356971970,1743511853541,-500.0,0.00018904,2]
[356971971,1743511853551,-707.22,0.00018904,2]
[356971972,1743511853562,-500.0,0.00018904,2]
[356971973,1743511853572,-500.0,0.00018904,2]
[356971974,1743511853581,-207.52058057,0.00018904,2]
[356971975,1743511853591,-500.0,0.00018904,2]
[356971976,1743511853601,-901.5,0.00018904,2]
[356971977,1743511853610,-500.0,0.00018904,2]
[356971978,1743511853620,-864.64,0.00018904,2]
[356971979,1743511853631,-619.0,0.00018904,2]
[356971980,1743511853640,-896.88,0.00018904,2]
[356971981,1743511853650,-500.0,0.00018904,2]
[356971982,1743511853661,-500.0,0.00018904,2]
[356971983,1743511853672,-1772.12,0.00018904,2]
[356971984,1743511853683,-500.0,0.00018904,2]
[356971985,1743511853692,-596.7,0.00018904,2]
[356971986,1743511853702,-500.0,0.00018904,2]
[356971987,1743511853712,-500.0,0.00018904,2]
[356971988,1743511853722,-500.0,0.00018904,2]
[356971989,1743511853732,-500.0,0.00018904,2]
[356971990,1743511853741,-500.0,0.00018904,2]
[356971991,1743511853751,-3356.11,0.00018904,2]
[356971992,1743511853761,-540.11,0.00018904,2]
[356971993,1743511853771,-640.2,0.00018904,2]
[356971994,1743511853780,-564.61,0.00018904,2]
[356971995,1743511853790,-1033.56,0.00018904,2]
[356971996,1743511853800,-500.0,0.00018904,2]
[356971997,1743511853810,-532.66,0.00018904,2]
[356971998,1743511853820,-2934.38,0.00018904,2]
[356971999,1743511853831,-987.59,0.00018904,2]
[356972000,1743511853841,-500.0,0.00018904,2]
[356972001,1743511853851,-500.0,0.00018904,2]
[356972002,1743511853861,-599.43,0.00018904,2]
[356972003,1743511853871,-4154.16,0.00018904,2]
[356972004,1743511853880,-500.0,0.00018904,2]
[356972005,1743511853890,-500.0,0.00018904,2]
[356972006,1743511853899,-500.0,0.00018904,2]
[356972007,1743511853910,-556.05371354,0.00018904,2]
[356972008,1743511853921,-686.03,0.00018904,2]
[356972009,1743511853931,-549.89,0.00018904,2]
[356972010,1743511853940,-500.0,0.00018904,2]
[356972011,1743511853949,-635.45,0.00018904,2]
[356972012,1743511853959,-500.0,0.00018904,2]
[356972013,1743511853968,-618.27,0.00018904,2]
[356972014,1743511853978,-379.9202219,0.00018904,2]
[356972015,1743511853987,-500.0,0.00018904,2]
[356972016,1743511853997,-500.0,0.00018904,2]
[356972017,1743511854007,-646.65460116,0.00018904,2]
[356972018,1743511854016,-500.0,0.00018904,2]
[356972019,1743511854027,-500.0,0.00018904,2]
[356972020,1743511854036,-500.0,0.00018904,2]
[356972021,1743511854047,-618.55,0.00018904,2]
[356972022,1743511854059,-500.0,0.00018904,2]
[356972023,1743511854068,-500.0,0.00018904,2]
[356972024,1743511854080,-3733.39,0.00018904,2]
[356972025,1743511854090,-384.16933026,0.00018904,2]
[356972026,1743511854100,-500.0,0.00018904,2]
[356972027,1743511854110,-500.0,0.00018904,2]
[356972028,1743511854122,-589.15,0.00018904,2]
[356972029,1743511854132,-552.2,0.00018904,2]
[356972030,1743511854143,-2903.61,0.00018904,2]
[356972031,1743511854153,-500.0,0.00018904,2]
[356972032,1743511854164,-401.20753648,0.00018904,2]
[356972033,1743511854174,-4746.78,0.00018904,2]
[356972034,1743511854184,-500.0,0.00018904,2]
[356972035,1743511854194,-500.0,0.00018904,2]
[356972036,1743511854206,-500.0,0.00018904,2]
[356972037,1743511854216,-1427.21,0.00018904,2]
[356972038,1743511854226,-1831.33,0.00018904,2]
[356972039,1743511854236,-829.33,0.00018904,2]
[356972040,1743511854245,-500.0,0.00018904,2]
[356972041,1743511854255,-500.0,0.00018904,2]